[Event "Late-Titled-Tuesday-Blitz-July-09-2024"]
[Site "Chess.com"]
[Date "2024.07.09"]
[Round "5"]
[White "fugadelafuga"]
[Black "chipmunknau"]
[Result "1-0"]
[WhiteElo "2454"]
[BlackElo "2693"]
[TimeControl "180+1"]
[EndTime "14:54:16 PDT"]
[Termination "fugadelafuga won by resignation"]

1. c4 {[%clk 0:03:00.9]} 1... Nf6 {[%clk 0:02:57.7]} 2. Nc3 {[%clk 0:02:50.7]}
2... g6 {[%clk 0:02:56.7]} 3. g3 {[%clk 0:02:51]} 3... Bg7 {[%clk 0:02:57]} 4.
Bg2 {[%clk 0:02:51.6]} 4... O-O {[%clk 0:02:57.2]} 5. e4 {[%clk 0:02:51.7]} 5...
e5 {[%clk 0:02:56.5]} 6. Nge2 {[%clk 0:02:52]} 6... Nc6 {[%clk 0:02:55.9]} 7.
O-O {[%clk 0:02:52.1]} 7... d6 {[%clk 0:02:56.2]} 8. Rb1 {[%clk 0:02:52.4]} 8...
a5 {[%clk 0:02:55.7]} 9. a3 {[%clk 0:02:52.5]} 9... Be6 {[%clk 0:02:54.8]} 10.
d3 {[%clk 0:02:52.1]} 10... Qd7 {[%clk 0:02:55.3]} 11. b4 {[%clk 0:02:48.8]}
11... axb4 {[%clk 0:02:56.2]} 12. axb4 {[%clk 0:02:49.4]} 12... Bh3 {[%clk
0:02:56.2]} 13. Bxh3 {[%clk 0:02:48]} 13... Qxh3 {[%clk 0:02:57.1]} 14. f3
{[%clk 0:02:48.6]} 14... Nd8 {[%clk 0:02:52.7]} 15. Be3 {[%clk 0:02:48.1]} 15...
c6 {[%clk 0:02:51.1]} 16. b5 {[%clk 0:02:48.5]} 16... Ne6 {[%clk 0:02:47]} 17.
bxc6 {[%clk 0:02:47.9]} 17... bxc6 {[%clk 0:02:47.9]} 18. Qd2 {[%clk 0:02:45.2]}
18... Rfd8 {[%clk 0:02:39.3]} 19. Ra1 {[%clk 0:02:42.3]} 19... Rac8 {[%clk
0:02:38.8]} 20. d4 {[%clk 0:02:32.6]} 20... d5 {[%clk 0:02:30.9]} 21. cxd5
{[%clk 0:02:24.8]} 21... cxd5 {[%clk 0:02:31.8]} 22. Nxd5 {[%clk 0:02:14.9]}
22... Nxd5 {[%clk 0:02:29.1]} 23. exd5 {[%clk 0:02:15.4]} 23... exd4 {[%clk
0:02:07.1]} 24. dxe6 {[%clk 0:01:28.1]} 24... dxe3 {[%clk 0:02:06.3]} 25. exf7+
{[%clk 0:01:29]} 25... Kh8 {[%clk 0:01:48.8]} 26. Qxe3 {[%clk 0:01:27.8]} 26...
Bxa1 {[%clk 0:01:49]} 27. Rxa1 {[%clk 0:01:28.7]} 27... Qf5 {[%clk 0:01:38.5]}
28. Ra7 {[%clk 0:01:27.5]} 28... Qc5 {[%clk 0:01:25.4]} 29. Nd4 {[%clk
0:00:50.4]} 29... Qc1+ {[%clk 0:00:45.3]} 30. Qxc1 {[%clk 0:00:41.2]} 30...
Rxc1+ {[%clk 0:00:46.2]} 31. Kf2 {[%clk 0:00:38.9]} 31... Rf8 {[%clk 0:00:14]}
32. Ne6 {[%clk 0:00:36.2]} 32... Rcc8 {[%clk 0:00:14.6]} 33. g4 {[%clk
0:00:26.7]} 33... h6 {[%clk 0:00:14.1]} 34. h4 {[%clk 0:00:24]} 34... Ra8 {[%clk
0:00:12]} 35. Rxa8 {[%clk 0:00:22]} 1-0

[Event "Late-Titled-Tuesday-Blitz-July-09-2024"]
[Site "Chess.com"]
[Date "2024.07.09"]
[Round "5"]
[White "anderson2361"]
[Black "BaylavChess"]
[Result "0-1"]
[WhiteElo "2221"]
[BlackElo "2406"]
[TimeControl "180+1"]
[EndTime "14:54:19 PDT"]
[Termination "BaylavChess won by checkmate"]

1. c4 {[%clk 0:03:00.9]} 1... Nf6 {[%clk 0:02:59.9]} 2. Nf3 {[%clk 0:02:57.1]}
2... g6 {[%clk 0:02:58.6]} 3. Nc3 {[%clk 0:02:56.1]} 3... d5 {[%clk 0:02:57.4]}
4. cxd5 {[%clk 0:02:55.4]} 4... Nxd5 {[%clk 0:02:58.3]} 5. g3 {[%clk 0:02:49.1]}
5... Bg7 {[%clk 0:02:58.3]} 6. Bg2 {[%clk 0:02:49.3]} 6... O-O {[%clk
0:02:58.7]} 7. O-O {[%clk 0:02:49.4]} 7... Nb6 {[%clk 0:02:57.9]} 8. a4 {[%clk
0:02:45.4]} 8... a5 {[%clk 0:02:51.5]} 9. d4 {[%clk 0:02:40.5]} 9... Nc6 {[%clk
0:02:51.9]} 10. Bg5 {[%clk 0:02:38.2]} 10... h6 {[%clk 0:02:44.9]} 11. Bf4
{[%clk 0:02:36]} 11... Bf5 {[%clk 0:02:39.2]} 12. Nb5 {[%clk 0:02:34.5]} 12...
Nd5 {[%clk 0:02:39.2]} 13. Bd2 {[%clk 0:02:30.1]} 13... Ndb4 {[%clk 0:02:30.6]}
14. e3 {[%clk 0:02:11.5]} 14... Bd3 {[%clk 0:02:28.2]} 15. Rc1 {[%clk
0:01:58.1]} 15... Bxf1 {[%clk 0:02:26.4]} 16. Qxf1 {[%clk 0:01:57.6]} 16... Rb8
{[%clk 0:02:14.5]} 17. h4 {[%clk 0:01:55.8]} 17... h5 {[%clk 0:02:13.4]} 18. Bc3
{[%clk 0:01:51]} 18... Nd5 {[%clk 0:02:10.3]} 19. Bd2 {[%clk 0:01:49.5]} 19...
e5 {[%clk 0:02:08.2]} 20. e4 {[%clk 0:01:47.7]} 20... Nb6 {[%clk 0:02:01.7]} 21.
d5 {[%clk 0:01:47.7]} 21... Nd4 {[%clk 0:01:59.1]} 22. Nfxd4 {[%clk 0:01:39]}
22... exd4 {[%clk 0:02:00]} 23. Bxa5 {[%clk 0:01:36.5]} 23... Ra8 {[%clk
0:01:54.5]} 24. Bb4 {[%clk 0:01:33.6]} 24... Re8 {[%clk 0:01:42.5]} 25. Nxc7
{[%clk 0:01:32.5]} 25... Rxa4 {[%clk 0:01:42.6]} 26. Nxe8 {[%clk 0:01:32.2]}
26... Rxb4 {[%clk 0:01:42.3]} 27. Nxg7 {[%clk 0:01:31.5]} 27... Kxg7 {[%clk
0:01:43.2]} 28. Qd3 {[%clk 0:01:26]} 28... Qf6 {[%clk 0:01:41.6]} 29. b3 {[%clk
0:01:25.7]} 29... Nd7 {[%clk 0:01:40.4]} 30. f4 {[%clk 0:01:19.2]} 30... Qb6
{[%clk 0:01:32.1]} 31. e5 {[%clk 0:00:54.7]} 31... Rxb3 {[%clk 0:01:30.8]} 32.
Qc4 {[%clk 0:00:52.8]} 32... d3+ {[%clk 0:01:00.3]} 33. Kh2 {[%clk 0:00:51.6]}
33... Rb1 {[%clk 0:00:53.1]} 34. Rxb1 {[%clk 0:00:39.2]} 34... Qxb1 {[%clk
0:00:54]} 35. e6 {[%clk 0:00:33.6]} 35... Nf6 {[%clk 0:00:42.5]} 36. Qd4 {[%clk
0:00:30.7]} 36... d2 {[%clk 0:00:28.5]} 37. Qxd2 {[%clk 0:00:29.5]} 37... Ng4+
{[%clk 0:00:28.5]} 38. Kh3 {[%clk 0:00:26]} 38... Qg1 {[%clk 0:00:29.2]} 39. e7
{[%clk 0:00:17.8]} 39... Qh2# {[%clk 0:00:28.9]} 0-1

[Event "Late-Titled-Tuesday-Blitz-July-09-2024"]
[Site "Chess.com"]
[Date "2024.07.09"]
[Round "5"]
[White "annasargsyan_m"]
[Black "JunjiCol"]
[Result "0-1"]
[WhiteElo "2681"]
[BlackElo "2447"]
[TimeControl "180+1"]
[EndTime "14:54:21 PDT"]
[Termination "JunjiCol won by resignation"]

1. d4 {[%clk 0:01:18.3]} 1... d5 {[%clk 0:02:55.7]} 2. c4 {[%clk 0:01:18.3]}
2... e6 {[%clk 0:02:55.8]} 3. Nc3 {[%clk 0:01:18.8]} 3... c5 {[%clk 0:02:56.2]}
4. cxd5 {[%clk 0:01:18.2]} 4... cxd4 {[%clk 0:02:56.6]} 5. Qxd4 {[%clk
0:01:18.7]} 5... Nc6 {[%clk 0:02:56.5]} 6. Qd2 {[%clk 0:01:19.3]} 6... exd5
{[%clk 0:02:56.7]} 7. Qxd5 {[%clk 0:01:20.2]} 7... Qc7 {[%clk 0:02:57]} 8. Nf3
{[%clk 0:01:17.2]} 8... Nf6 {[%clk 0:02:56.5]} 9. Qd2 {[%clk 0:01:11]} 9... Bf5
{[%clk 0:02:54.2]} 10. a3 {[%clk 0:01:05.6]} 10... Rd8 {[%clk 0:02:53.1]} 11.
Qe3+ {[%clk 0:01:05.5]} 11... Be7 {[%clk 0:02:53]} 12. g3 {[%clk 0:01:02]} 12...
Qa5 {[%clk 0:02:05.6]} 13. Bd2 {[%clk 0:00:50.1]} 13... Nb4 {[%clk 0:02:03.2]}
14. Rc1 {[%clk 0:00:38.8]} 14... Nc2+ {[%clk 0:01:59]} 15. Rxc2 {[%clk
0:00:39.2]} 15... Bxc2 {[%clk 0:01:59.8]} 16. Bg2 {[%clk 0:00:39.4]} 16... Qc7
{[%clk 0:01:48]} 17. Nd4 {[%clk 0:00:38]} 17... Bg6 {[%clk 0:01:42.6]} 18. Ndb5
{[%clk 0:00:37.3]} 18... Qb6 {[%clk 0:01:39.3]} 19. Nxa7 {[%clk 0:00:23.6]}
19... Qxb2 {[%clk 0:01:29.4]} 20. Nab5 {[%clk 0:00:13.6]} 20... O-O {[%clk
0:01:27.5]} 21. O-O {[%clk 0:00:12]} 21... Rfe8 {[%clk 0:01:19.5]} 22. Bc1
{[%clk 0:00:12.4]} 22... Qb3 {[%clk 0:01:18.3]} 23. Nc7 {[%clk 0:00:13]} 23...
Bb4 {[%clk 0:01:01.2]} 24. Nxe8 {[%clk 0:00:12.2]} 24... Rxe8 {[%clk 0:01:01.5]}
25. Qxe8+ {[%clk 0:00:10.9]} 25... Nxe8 {[%clk 0:01:01]} 26. axb4 {[%clk
0:00:11.8]} 26... Qxc3 {[%clk 0:01:00.9]} 27. b5 {[%clk 0:00:11.6]} 27... b6
{[%clk 0:00:51.7]} 28. Bc6 {[%clk 0:00:11.1]} 28... Nf6 {[%clk 0:00:49.1]} 29.
Be3 {[%clk 0:00:11.6]} 29... Qa5 {[%clk 0:00:48.4]} 30. Rd1 {[%clk 0:00:11.4]}
30... h6 {[%clk 0:00:48.1]} 31. h4 {[%clk 0:00:10.2]} 31... Be4 {[%clk
0:00:46.5]} 32. Rc1 {[%clk 0:00:06.2]} 32... Nd5 {[%clk 0:00:36.3]} 33. Bd4
{[%clk 0:00:05.6]} 33... Qd2 {[%clk 0:00:29.6]} 34. Be3 {[%clk 0:00:04.9]} 34...
Nxe3 {[%clk 0:00:28.6]} 0-1

[Event "Late-Titled-Tuesday-Blitz-July-09-2024"]
[Site "Chess.com"]
[Date "2024.07.09"]
[Round "5"]
[White "Matalon"]
[Black "nitpicker"]
[Result "0-1"]
[WhiteElo "2484"]
[BlackElo "2311"]
[TimeControl "180+1"]
[EndTime "14:54:21 PDT"]
[Termination "nitpicker won by checkmate"]

1. e4 {[%clk 0:02:54.4]} 1... c5 {[%clk 0:02:59.2]} 2. Nf3 {[%clk 0:02:54.5]}
2... Nc6 {[%clk 0:02:58.1]} 3. d4 {[%clk 0:02:54.3]} 3... cxd4 {[%clk 0:02:58]}
4. Nxd4 {[%clk 0:02:55.2]} 4... Nf6 {[%clk 0:02:57.8]} 5. Nc3 {[%clk 0:02:55]}
5... d6 {[%clk 0:02:58.1]} 6. Bg5 {[%clk 0:02:53.8]} 6... Qb6 {[%clk 0:02:57.4]}
7. Nb3 {[%clk 0:02:49.8]} 7... e6 {[%clk 0:02:56.7]} 8. Qd3 {[%clk 0:02:44.8]}
8... a6 {[%clk 0:02:51.6]} 9. Be2 {[%clk 0:02:36.9]} 9... Be7 {[%clk 0:02:50.3]}
10. f4 {[%clk 0:02:36.8]} 10... Qc7 {[%clk 0:02:42.2]} 11. O-O-O {[%clk
0:02:36]} 11... b5 {[%clk 0:02:30.1]} 12. Bf3 {[%clk 0:02:30.2]} 12... Bb7
{[%clk 0:02:29]} 13. Kb1 {[%clk 0:02:29.1]} 13... O-O {[%clk 0:02:18.8]} 14. g4
{[%clk 0:02:18.3]} 14... Rfd8 {[%clk 0:02:11.8]} 15. h4 {[%clk 0:02:15]} 15...
b4 {[%clk 0:02:07.9]} 16. Ne2 {[%clk 0:02:08.3]} 16... d5 {[%clk 0:02:08.1]} 17.
e5 {[%clk 0:02:01.2]} 17... Ne4 {[%clk 0:02:07.7]} 18. Bxe7 {[%clk 0:01:33.4]}
18... Nxe7 {[%clk 0:02:07.4]} 19. Qe3 {[%clk 0:01:19.8]} 19... Rac8 {[%clk
0:01:59.5]} 20. Nbd4 {[%clk 0:01:16.7]} 20... a5 {[%clk 0:01:51]} 21. h5 {[%clk
0:00:48.5]} 21... a4 {[%clk 0:01:45.1]} 22. g5 {[%clk 0:00:34.4]} 22... Nf5
{[%clk 0:01:23.1]} 23. Qg1 {[%clk 0:00:27.6]} 23... a3 {[%clk 0:01:13.5]} 24.
Rh2 {[%clk 0:00:14.6]} 24... axb2 {[%clk 0:01:11.7]} 25. Bxe4 {[%clk 0:00:13.1]}
25... dxe4 {[%clk 0:01:10.2]} 26. Ng3 {[%clk 0:00:12.7]} 26... Nxd4 {[%clk
0:00:43.6]} 27. Rxd4 {[%clk 0:00:12.6]} 27... Rxd4 {[%clk 0:00:39]} 28. Qxd4
{[%clk 0:00:13.5]} 28... Qc3 {[%clk 0:00:32.8]} 29. Qd1 {[%clk 0:00:09]} 29...
e3 {[%clk 0:00:27.5]} 30. Ne2 {[%clk 0:00:08.1]} 30... Qd2 {[%clk 0:00:20.1]}
31. Qf1 {[%clk 0:00:02.5]} 31... Qxc2# {[%clk 0:00:17]} 0-1

[Event "Late-Titled-Tuesday-Blitz-July-09-2024"]
[Site "Chess.com"]
[Date "2024.07.09"]
[Round "5"]
[White "KNVB"]
[Black "Mikhal867"]
[Result "1-0"]
[WhiteElo "2665"]
[BlackElo "2441"]
[TimeControl "180+1"]
[EndTime "14:54:27 PDT"]
[Termination "KNVB won on time"]

1. d4 {[%clk 0:03:00.9]} 1... Nf6 {[%clk 0:02:39.9]} 2. Bf4 {[%clk 0:03:00.8]}
2... c5 {[%clk 0:02:39]} 3. c3 {[%clk 0:02:53.9]} 3... Qb6 {[%clk 0:02:37.2]} 4.
Qb3 {[%clk 0:02:52.5]} 4... cxd4 {[%clk 0:02:34.9]} 5. Qxb6 {[%clk 0:02:52.1]}
5... axb6 {[%clk 0:02:34]} 6. Bxb8 {[%clk 0:02:53]} 6... Rxb8 {[%clk 0:02:32.8]}
7. cxd4 {[%clk 0:02:53.9]} 7... d5 {[%clk 0:02:20.7]} 8. e3 {[%clk 0:02:51.2]}
8... Bf5 {[%clk 0:02:18.2]} 9. Bb5+ {[%clk 0:02:50.4]} 9... Kd8 {[%clk
0:02:10.6]} 10. Nf3 {[%clk 0:02:49.5]} 10... e6 {[%clk 0:02:08.2]} 11. Ne5
{[%clk 0:02:49.1]} 11... Bxb1 {[%clk 0:01:54.7]} 12. Nxf7+ {[%clk 0:02:12.1]}
12... Ke7 {[%clk 0:01:50.3]} 13. Nxh8 {[%clk 0:02:12.6]} 13... Bf5 {[%clk
0:01:43.5]} 14. f3 {[%clk 0:02:13.3]} 14... h5 {[%clk 0:01:25.1]} 15. Ke2 {[%clk
0:02:07.4]} 15... Ne8 {[%clk 0:00:19.5]} 16. Bd3 {[%clk 0:00:54.4]} 16... Kf6
{[%clk 0:00:18.3]} 17. g4 {[%clk 0:00:54.2]} 17... Bxd3+ {[%clk 0:00:12.9]} 18.
Kxd3 {[%clk 0:00:54.4]} 18... h4 {[%clk 0:00:08.9]} 19. g5+ {[%clk 0:00:54.1]}
19... Kf5 {[%clk 0:00:06.7]} 20. Nf7 {[%clk 0:00:46.5]} 20... Nc7 {[%clk
0:00:04.8]} 21. Rhg1 {[%clk 0:00:44.4]} 21... Na6 {[%clk 0:00:03.6]} 22. a3
{[%clk 0:00:42.9]} 22... Be7 {[%clk 0:00:02.1]} 23. f4 {[%clk 0:00:41.7]} 23...
g6 {[%clk 0:00:01.8]} 24. Ne5 {[%clk 0:00:42.1]} 24... h3 {[%clk 0:00:01.1]} 25.
Rac1 {[%clk 0:00:23]} 25... Rh8 {[%clk 0:00:01.1]} 26. Rc2 {[%clk 0:00:09.8]}
26... Rh7 {[%clk 0:00:01.4]} 27. Rc8 {[%clk 0:00:06.2]} 1-0

[Event "Late-Titled-Tuesday-Blitz-July-09-2024"]
[Site "Chess.com"]
[Date "2024.07.09"]
[Round "5"]
[White "TigrVShlyape"]
[Black "hakanazeri2"]
[Result "1-0"]
[WhiteElo "2966"]
[BlackElo "2681"]
[TimeControl "180+1"]
[EndTime "14:54:28 PDT"]
[Termination "TigrVShlyape won on time"]

1. e4 {[%clk 0:02:56.9]} 1... c5 {[%clk 0:03:00]} 2. Nf3 {[%clk 0:02:56.5]} 2...
d6 {[%clk 0:03:00.3]} 3. d4 {[%clk 0:02:56.8]} 3... cxd4 {[%clk 0:03:01.2]} 4.
Nxd4 {[%clk 0:02:57.3]} 4... Nf6 {[%clk 0:03:01.9]} 5. Nc3 {[%clk 0:02:57.7]}
5... a6 {[%clk 0:03:02.6]} 6. a4 {[%clk 0:02:58.1]} 6... e5 {[%clk 0:03:02.2]}
7. Nf3 {[%clk 0:02:57.9]} 7... h6 {[%clk 0:02:59.2]} 8. Bc4 {[%clk 0:02:57.8]}
8... Be7 {[%clk 0:02:59.8]} 9. O-O {[%clk 0:02:57.3]} 9... O-O {[%clk
0:02:59.4]} 10. Qe2 {[%clk 0:02:56.4]} 10... Be6 {[%clk 0:02:58.9]} 11. Rd1
{[%clk 0:02:56.2]} 11... Nc6 {[%clk 0:02:57.4]} 12. Nd5 {[%clk 0:02:49.4]} 12...
Rc8 {[%clk 0:02:54.6]} 13. c3 {[%clk 0:02:37.3]} 13... Na5 {[%clk 0:02:35.9]}
14. Ba2 {[%clk 0:02:36.4]} 14... Nxd5 {[%clk 0:02:34.8]} 15. exd5 {[%clk
0:02:30.4]} 15... Bd7 {[%clk 0:02:15.3]} 16. b4 {[%clk 0:02:29.4]} 16... Bxa4
{[%clk 0:02:14.9]} 17. bxa5 {[%clk 0:02:29.5]} 17... Bxd1 {[%clk 0:02:13]} 18.
Qxd1 {[%clk 0:02:29.7]} 18... Qxa5 {[%clk 0:02:12.7]} 19. Bd2 {[%clk 0:02:29.4]}
19... b5 {[%clk 0:02:01]} 20. Bb3 {[%clk 0:02:25.3]} 20... Qb6 {[%clk
0:01:57.6]} 21. Qe2 {[%clk 0:02:19.1]} 21... a5 {[%clk 0:01:49.5]} 22. g4 {[%clk
0:02:12.7]} 22... a4 {[%clk 0:01:47.2]} 23. Bc2 {[%clk 0:02:09.4]} 23... b4
{[%clk 0:01:45.1]} 24. Rxa4 {[%clk 0:02:00.8]} 24... bxc3 {[%clk 0:01:44.6]} 25.
Be3 {[%clk 0:02:00.9]} 25... Qb2 {[%clk 0:01:38.2]} 26. Qd3 {[%clk 0:01:59.8]}
26... g6 {[%clk 0:01:37.3]} 27. Bxh6 {[%clk 0:01:59.3]} 27... Rfe8 {[%clk
0:01:33.8]} 28. h4 {[%clk 0:01:57.9]} 28... Ra8 {[%clk 0:01:28.2]} 29. Rc4
{[%clk 0:01:54.1]} 29... Rec8 {[%clk 0:01:24.8]} 30. Rxc8+ {[%clk 0:01:53.2]}
30... Rxc8 {[%clk 0:01:25.2]} 31. h5 {[%clk 0:01:53.8]} 31... Qb4 {[%clk
0:01:07.3]} 32. Nh2 {[%clk 0:01:41.1]} 32... Qd4 {[%clk 0:01:06.9]} 33. Qa6
{[%clk 0:01:26.4]} 33... Qc4 {[%clk 0:01:00.9]} 34. Qb7 {[%clk 0:01:24.1]} 34...
Rc7 {[%clk 0:00:55.7]} 35. Qb6 {[%clk 0:01:18.4]} 35... Qc5 {[%clk 0:00:49.3]}
36. Qb8+ {[%clk 0:01:07.1]} 36... Rc8 {[%clk 0:00:48.5]} 37. Qb1 {[%clk
0:01:06.4]} 37... g5 {[%clk 0:00:22.9]} 38. Nf1 {[%clk 0:01:05.6]} 38... f6
{[%clk 0:00:15.7]} 39. Ne3 {[%clk 0:01:03.7]} 39... Bf8 {[%clk 0:00:13.7]} 40.
Bxf8 {[%clk 0:00:59]} 40... Kxf8 {[%clk 0:00:14.6]} 41. Qd1 {[%clk 0:00:51]}
41... Qd4 {[%clk 0:00:14.2]} 42. Qe2 {[%clk 0:00:50.6]} 42... e4 {[%clk
0:00:05.3]} 43. Qa6 {[%clk 0:00:49.7]} 43... Rd8 {[%clk 0:00:03.6]} 44. Qb7
{[%clk 0:00:49.2]} 44... Qe5 {[%clk 0:00:01.7]} 45. h6 {[%clk 0:00:46.5]} 1-0

[Event "Late-Titled-Tuesday-Blitz-July-09-2024"]
[Site "Chess.com"]
[Date "2024.07.09"]
[Round "5"]
[White "Robert_Oros"]
[Black "Ninocanina"]
[Result "1-0"]
[WhiteElo "2318"]
[BlackElo "1954"]
[TimeControl "180+1"]
[EndTime "14:54:29 PDT"]
[Termination "Robert_Oros won by resignation"]

1. d4 {[%clk 0:03:00.9]} 1... d5 {[%clk 0:02:53]} 2. c4 {[%clk 0:03:00.3]} 2...
e6 {[%clk 0:02:52.3]} 3. Nc3 {[%clk 0:02:59.9]} 3... Nf6 {[%clk 0:02:52.4]} 4.
cxd5 {[%clk 0:02:59.3]} 4... exd5 {[%clk 0:02:52.2]} 5. Bg5 {[%clk 0:02:59.7]}
5... Be7 {[%clk 0:02:51.6]} 6. e3 {[%clk 0:02:59.4]} 6... O-O {[%clk 0:02:51.6]}
7. Qc2 {[%clk 0:02:59.8]} 7... c6 {[%clk 0:02:51.3]} 8. Bd3 {[%clk 0:02:59.3]}
8... h6 {[%clk 0:02:50.1]} 9. Bh4 {[%clk 0:02:59.4]} 9... Re8 {[%clk 0:02:36.9]}
10. Nge2 {[%clk 0:02:58.3]} 10... Ne4 {[%clk 0:02:34.2]} 11. Bxe7 {[%clk
0:02:55.2]} 11... Qxe7 {[%clk 0:02:34.3]} 12. Bxe4 {[%clk 0:02:30.2]} 12... dxe4
{[%clk 0:02:33.9]} 13. Ng3 {[%clk 0:02:30.7]} 13... f5 {[%clk 0:02:02.3]} 14.
O-O {[%clk 0:02:29.8]} 14... Kh8 {[%clk 0:02:01]} 15. f3 {[%clk 0:02:25.7]}
15... c5 {[%clk 0:01:50.7]} 16. fxe4 {[%clk 0:02:04]} 16... cxd4 {[%clk
0:01:46.3]} 17. Nd5 {[%clk 0:02:02.5]} 17... Qd8 {[%clk 0:01:17.1]} 18. Nc7
{[%clk 0:01:52]} 18... d3 {[%clk 0:01:16.4]} 19. Qc3 {[%clk 0:01:51.7]} 19...
Re7 {[%clk 0:01:07]} 20. Nxa8 {[%clk 0:01:50]} 20... fxe4 {[%clk 0:01:07.1]} 21.
Nf5 {[%clk 0:01:26]} 21... Bxf5 {[%clk 0:00:59.8]} 22. Rxf5 {[%clk 0:01:26.3]}
22... Nc6 {[%clk 0:00:50.5]} 23. Raf1 {[%clk 0:01:21]} 23... Re8 {[%clk
0:00:50.6]} 24. Rf7 {[%clk 0:01:18.4]} 24... Rg8 {[%clk 0:00:39.4]} 25. Nc7
{[%clk 0:01:13.8]} 25... d2 {[%clk 0:00:18.7]} 26. Rd1 {[%clk 0:01:01.6]} 26...
Ne5 {[%clk 0:00:06]} 27. Qxe5 {[%clk 0:00:53.6]} 27... Qd3 {[%clk 0:00:05.9]}
28. Qc3 {[%clk 0:00:44.5]} 28... Qe2 {[%clk 0:00:05.6]} 29. Qxd2 {[%clk
0:00:42.3]} 29... Qh5 {[%clk 0:00:04.2]} 30. Rdf1 {[%clk 0:00:35.9]} 30... Qe5
{[%clk 0:00:04.1]} 31. Qd4 {[%clk 0:00:31.1]} 31... Qg5 {[%clk 0:00:03.9]} 32.
Ne6 {[%clk 0:00:29.6]} 32... Qg6 {[%clk 0:00:03.6]} 33. Nxg7 {[%clk 0:00:25.4]}
33... Rxg7 {[%clk 0:00:03.6]} 34. Rxg7 {[%clk 0:00:21.3]} 1-0

[Event "Late-Titled-Tuesday-Blitz-July-09-2024"]
[Site "Chess.com"]
[Date "2024.07.09"]
[Round "5"]
[White "mortngabriel"]
[Black "Vaporwaffle94"]
[Result "1-0"]
[WhiteElo "2463"]
[BlackElo "2277"]
[TimeControl "180+1"]
[EndTime "14:54:38 PDT"]
[Termination "mortngabriel won by resignation"]

1. e4 {[%clk 0:03:00.9]} 1... e6 {[%clk 0:02:55.1]} 2. d4 {[%clk 0:03:00]} 2...
d5 {[%clk 0:02:55.2]} 3. Nc3 {[%clk 0:03:00.4]} 3... dxe4 {[%clk 0:02:55]} 4.
Nxe4 {[%clk 0:03:00.4]} 4... Bd7 {[%clk 0:02:55.7]} 5. Nf3 {[%clk 0:03:00.2]}
5... Bc6 {[%clk 0:02:56.2]} 6. Bd3 {[%clk 0:03:00.7]} 6... Nd7 {[%clk 0:02:56]}
7. O-O {[%clk 0:03:00.5]} 7... Ngf6 {[%clk 0:02:56.4]} 8. Ng3 {[%clk 0:02:59.9]}
8... Bd6 {[%clk 0:02:53.9]} 9. Re1 {[%clk 0:02:59.3]} 9... O-O {[%clk
0:02:52.9]} 10. Ne5 {[%clk 0:02:58.5]} 10... Bxe5 {[%clk 0:02:45.2]} 11. dxe5
{[%clk 0:02:58.5]} 11... Nd5 {[%clk 0:02:45.6]} 12. Qh5 {[%clk 0:02:45]} 12...
g6 {[%clk 0:02:44.8]} 13. Qh6 {[%clk 0:02:43.6]} 13... f5 {[%clk 0:02:43.7]} 14.
a3 {[%clk 0:02:17.7]} 14... Qe7 {[%clk 0:02:36.6]} 15. Bg5 {[%clk 0:01:43.9]}
15... Qg7 {[%clk 0:02:35.3]} 16. Qh4 {[%clk 0:01:44.6]} 16... h5 {[%clk
0:02:27]} 17. Qd4 {[%clk 0:01:23.6]} 17... N7b6 {[%clk 0:01:55.2]} 18. c4 {[%clk
0:01:20.1]} 18... Ne7 {[%clk 0:01:54.4]} 19. b4 {[%clk 0:01:15.2]} 19... Rad8
{[%clk 0:01:53.2]} 20. Qc3 {[%clk 0:01:13.8]} 20... Na4 {[%clk 0:01:51.8]} 21.
Qc2 {[%clk 0:01:13.8]} 21... Nb2 {[%clk 0:01:31.1]} 22. Bf1 {[%clk 0:01:10.1]}
22... f4 {[%clk 0:01:29.1]} 23. Ne4 {[%clk 0:01:01]} 23... Na4 {[%clk
0:01:22.3]} 24. Nf6+ {[%clk 0:00:57.4]} 24... Kh8 {[%clk 0:01:20.9]} 25. b5
{[%clk 0:00:56.8]} 25... Nb6 {[%clk 0:01:16.7]} 26. bxc6 {[%clk 0:00:55.6]}
26... Nxc6 {[%clk 0:01:17.6]} 27. Rad1 {[%clk 0:00:51.5]} 27... Rd4 {[%clk
0:01:12.7]} 28. Rxd4 {[%clk 0:00:50.4]} 28... Nxd4 {[%clk 0:01:13.6]} 29. Qe4
{[%clk 0:00:50.9]} 29... Nf5 {[%clk 0:01:07.8]} 30. c5 {[%clk 0:00:46.7]} 30...
Nc8 {[%clk 0:01:04]} 31. Qxb7 {[%clk 0:00:42.9]} 31... Nce7 {[%clk 0:01:02.5]}
32. Qxc7 {[%clk 0:00:37.6]} 32... Rf7 {[%clk 0:01:02.9]} 33. c6 {[%clk
0:00:31.3]} 33... Nd5 {[%clk 0:01:00.7]} 34. Qd8+ {[%clk 0:00:29.8]} 34... Rf8
{[%clk 0:01:01.1]} 35. Nxd5 {[%clk 0:00:19.6]} 35... Rxd8 {[%clk 0:01:00.3]} 36.
Bxd8 {[%clk 0:00:18.6]} 36... Qf7 {[%clk 0:00:54.6]} 37. c7 {[%clk 0:00:18.6]}
37... Qd7 {[%clk 0:00:54.7]} 38. Ba6 {[%clk 0:00:15.7]} 38... Qxd5 {[%clk
0:00:47]} 39. Bf6+ {[%clk 0:00:15.7]} 39... Kh7 {[%clk 0:00:47.9]} 40. c8=Q
{[%clk 0:00:15.6]} 40... g5 {[%clk 0:00:41.9]} 41. Qh8+ {[%clk 0:00:14.5]} 41...
Kg6 {[%clk 0:00:42]} 42. Qg8+ {[%clk 0:00:14.8]} 42... Kh6 {[%clk 0:00:41.9]}
43. Qxg5+ {[%clk 0:00:14.4]} 43... Kh7 {[%clk 0:00:42.1]} 44. Qxh5+ {[%clk
0:00:13.5]} 44... Kg8 {[%clk 0:00:40.3]} 45. Qh8+ {[%clk 0:00:12.9]} 45... Kf7
{[%clk 0:00:41.2]} 46. Qh7+ {[%clk 0:00:13.6]} 46... Ke8 {[%clk 0:00:41.2]} 47.
Rc1 {[%clk 0:00:11.4]} 1-0